fUSD/lending_fUSD_20240119
["ID","MTS","AMOUNT","RATE_DAILY","PERIOD"]
[312125109,1705653038385,-19133.17801413,0.000218,2]
[312125111,1705653038394,-500.0,0.00021809,2]
[312125112,1705653038403,-302109.55154315,0.00021809,2]
[312125115,1705653038413,-532.50248823,0.00021809,2]
[312125116,1705653038423,-187.96504818,0.00021809,2]
[312125119,1705653038432,-86338.8176,0.0002181,2]
[312125120,1705653038441,-220109.843,0.0002181,2]
[312125123,1705653038450,-398.33371905,0.00021813,2]
[312125125,1705653038459,-1339.00513371,0.00021848,2]
[312125127,1705653038469,-499.99,0.00021848,2]
[312125129,1705653038478,-323.2,0.0002187,2]
[312125131,1705653038487,-398.33371905,0.00021881,2]
[312125133,1705653038496,-250.0,0.000219,2]
[312125135,1705653038505,-271.08668624,0.000219,2]
[312125137,1705653038514,-271.08668605,0.000219,2]
[312125138,1705653038522,-271.08668605,0.000219,2]
[312125139,1705653038532,-271.08668605,0.000219,2]
[312125140,1705653038541,-250.0,0.00021918,2]
[312125141,1705653038550,-151.1,0.0002192,2]
[312125142,1705653038559,-398.33371905,0.00021948,2]
[312125143,1705653038568,-5000.0,0.0002195,2]
[312125144,1705653038578,-271.08668605,0.0002196,2]
[312125145,1705653038586,-179.67,0.00021963,2]
[312125146,1705653038596,-150.54339926,0.00021986,2]
[312125147,1705653038606,-150.0,0.00021999,2]
[312125148,1705653038615,-235.89308219,0.00021999,2]
[312125149,1705653038626,-398.33371905,0.00022016,2]
[312125150,1705653038636,-271.08668605,0.00022022,2]
[312125151,1705653038645,-176.33,0.00022078,2]
[312125152,1705653038655,-302.63214907,0.00022082,2]
[312125154,1705653038664,-398.33371905,0.00022084,2]
[312125155,1705653038674,-271.08668605,0.00022085,2]
[312125156,1705653038682,-179.67,0.00022135,2]
[312125157,1705653038691,-151.1,0.0002214,2]
[312125158,1705653038700,-271.08668605,0.00022147,2]
[312125159,1705653038709,-398.33371905,0.00022152,2]
[312125160,1705653038718,-271.08668605,0.0002221,2]
[312125161,1705653038727,-398.33371905,0.0002222,2]
[312125162,1705653038736,-150.61,0.00022265,2]
[312125163,1705653038745,-271.08668605,0.00022273,2]
[312125164,1705653038754,-398.33371905,0.00022288,2]
[312125165,1705653038763,-179.67,0.00022307,2]
[312125166,1705653038772,-271.08668605,0.00022335,2]
[312125167,1705653038782,-398.33371905,0.00022356,2]
[312125168,1705653038791,-500.0,0.00022356,2]
[312125169,1705653038800,-205.0,0.00022412,2]
[312125170,1705653038810,-398.33371905,0.00022424,2]
[312125171,1705653038819,-442.35,0.00022445,2]
[312125172,1705653038830,-179.67,0.00022479,2]
[312125173,1705653038839,-398.33371905,0.00022492,2]
[312125174,1705653038848,-150.0,0.00022547,2]
[312125175,1705653038857,-398.33371905,0.0002256,2]
[312125176,1705653038866,-176.33,0.00022626,2]
[312125177,1705653038877,-398.33371905,0.00022627,2]
[312125178,1705653038886,-165.39,0.00022631,2]
[312125179,1705653038896,-179.67,0.00022651,2]
[312125180,1705653038906,-398.33371905,0.00022695,2]
[312125181,1705653038916,-150.0,0.00022717,2]
[312125182,1705653038926,-398.33371905,0.00022763,2]
[312125183,1705653038935,-179.67,0.00022823,2]
[312125184,1705653038945,-398.33371905,0.00022831,2]
[312125185,1705653038955,-323.2,0.00022848,2]
[312125186,1705653038967,-16902.48509725,0.00022894,2]
[312125187,1705653038978,-7515.49248177,0.00022896,2]
[312125188,1705653038989,-242.71642796,0.00022896,2]
[312125189,1705653038999,-220.82773707,0.00022896,2]
[312125190,1705653039008,-34060.2481,0.00022898,2]
[312125191,1705653039017,-398.33371905,0.00022899,2]
[312125192,1705653039028,-425.7970788,0.00022899,2]
[312125193,1705653039037,-735.46701785,0.00022899,2]
[312125194,1705653039049,-152.51302001,0.00022899,2]
[312125195,1705653039058,-4684.3832,0.000229,2]
[312125196,1705653039069,-5000.0,0.000229,2]
[312125197,1705653039084,-1000.0,0.000229,2]
[312125198,1705653039094,-49600.2929,0.000229,2]
[312125199,1705653039104,-154.57593043,0.000229,2]
[312125200,1705653039114,-500.0,0.00022904,2]
[312125201,1705653039126,-103274.0,0.00022986,2]
[312125202,1705653039135,-179.67,0.00022996,2]
[312125203,1705653039145,-214.25314506,0.00022996,2]
[312125204,1705653039155,-400.25276388,0.00022996,2]
[312125205,1705653039164,-546.59727466,0.00022997,2]
[312125206,1705653039174,-9081.17020093,0.00022998,2]
[312125207,1705653039183,-2780.01074237,0.00022998,2]
[312125208,1705653039194,-290.78820766,0.00022998,2]
[312125209,1705653039204,-554.2233141,0.00022998,2]
[312125210,1705653039214,-436.58,0.00022998,2]
[312125211,1705653039224,-236.36593353,0.00022998,2]
[312125212,1705653039234,-1005.56,0.00022998,2]
[312125213,1705653039245,-999.99,0.00022998,2]
[312125214,1705653039254,-1000.0,0.00022998,2]
[312125215,1705653039263,-1000.0,0.00022998,2]
[312125216,1705653039273,-1000.0,0.00022998,2]
[312125217,1705653039282,-1000.0,0.00022998,2]
[312125218,1705653039292,-1000.0,0.00022998,2]
[312125219,1705653039302,-1000.0,0.00022998,2]
[312125220,1705653039311,-1000.0,0.00022998,2]
[312125221,1705653039320,-1000.0,0.00022998,2]
[312125222,1705653039329,-690.49,0.00022998,2]
[312125223,1705653039339,-1041.63971272,0.00022999,2]
[312125224,1705653039351,-659.39103668,0.00022999,2]
[312125225,1705653039361,-873302.47129978,0.00022999,2]
[312125226,1705653039370,-150.0,0.00022999,2]
[312125227,1705653039380,-150.0,0.00022999,2]
[312125228,1705653039389,-150.0,0.00022999,2]
[312125229,1705653039399,-150.0,0.00022999,2]
[312125230,1705653039408,-1572812.44980555,0.00022999,3]
[312125231,1705653039418,-3562914.31856059,0.00023,2]
[312125232,1705653039427,-187118.07449506,0.00023,2]
[312125233,1705653039442,-781245.77113859,0.00023,2]
[312125234,1705653039452,-200.0,0.00023,2]
[312125235,1705653039464,-159.7,0.00023057,2]
[312125236,1705653039474,-285.52257609,0.00023095,2]
[312125237,1705653039483,-543.92,0.00023135,2]
[312125238,1705653039494,-158.68,0.00023143,2]
[312125239,1705653039504,-1993.44870767,0.00023165,2]
[312125240,1705653039515,-179.67,0.00023168,2]
[312125241,1705653039524,-279.37547555,0.00023174,2]
[312125242,1705653039534,-200.0,0.0002323,2]
[312125243,1705653039544,-442.35,0.00023245,2]
[312125244,1705653039553,-500.0,0.00023288,4]
[312125245,1705653039564,-381.56435836,0.00023288,4]
[312125246,1705653039573,-500.0,0.00023288,4]
[312125247,1705653039582,-452.20610645,0.00023288,4]
[312125248,1705653039593,-500.0,0.00023288,4]
[312125249,1705653039603,-500.0,0.00023288,4]
[312125250,1705653039615,-262.5260245,0.00023288,4]
[312125251,1705653039625,-500.0,0.00023288,4]
[312125252,1705653039634,-500.0,0.00023288,4]
[312125253,1705653039644,-276.92546265,0.00023288,4]
[312125254,1705653039654,-500.0,0.00023288,4]
[312125255,1705653039663,-500.0,0.00023288,4]
[312125256,1705653039672,-444.99454361,0.00023288,4]
[312125257,1705653039682,-500.0,0.00023288,4]
[312125258,1705653039690,-500.0,0.00023288,4]
[312125259,1705653039699,-500.0,0.00023288,4]
[312125260,1705653039710,-500.0,0.00023288,4]
[312125261,1705653039719,-524.94397188,0.00023288,2]
[312125262,1705653039728,-648.12246913,0.00023288,2]
[312125263,1705653039737,-500.0,0.00023288,2]
[312125264,1705653039748,-500.0,0.00023288,2]
[312125265,1705653039757,-255.76156585,0.00023288,2]
[312125266,1705653039769,-209.97758874,0.00023288,2]
[312125267,1705653039779,-724.36732043,0.00023288,2]
[312125268,1705653039789,-724.36732043,0.00023288,2]
[312125269,1705653039799,-724.36732043,0.00023288,2]
[312125270,1705653039808,-724.36732043,0.00023288,2]
[312125271,1705653039817,-724.36732043,0.00023288,2]
[312125272,1705653039826,-724.36732043,0.00023288,2]
[312125273,1705653039835,-724.36732043,0.00023288,2]
[312125274,1705653039844,-724.36732043,0.00023288,2]
[312125275,1705653039854,-724.36732043,0.00023288,2]
[312125276,1705653039863,-724.36732043,0.00023288,2]
[312125277,1705653039873,-724.36732043,0.00023288,2]
[312125278,1705653039882,-724.36732043,0.00023288,2]
[312125279,1705653039891,-724.36732043,0.00023288,2]
[312125280,1705653039901,-724.36732043,0.00023288,2]
[312125281,1705653039910,-724.36732043,0.00023288,2]
[312125282,1705653039920,-724.36732043,0.00023288,2]
[312125283,1705653039929,-724.36732043,0.00023288,2]
[312125284,1705653039938,-724.36732043,0.00023288,2]
[312125285,1705653039947,-724.36732043,0.00023288,2]
[312125286,1705653039957,-724.36732043,0.00023288,2]
[312125287,1705653039966,-724.36732043,0.00023288,2]
[312125288,1705653039975,-724.36732043,0.00023288,2]
[312125289,1705653039985,-724.36732043,0.00023288,2]
[312125292,1705653039994,-724.36732043,0.00023288,2]
[312125294,1705653040003,-724.36732043,0.00023288,2]
[312125296,1705653040012,-724.36732043,0.00023288,2]
[312125298,1705653040022,-724.36732043,0.00023288,2]
[312125299,1705653040031,-724.36732043,0.00023288,2]
[312125300,1705653040040,-724.36732043,0.00023288,2]
[312125302,1705653040049,-724.36732043,0.00023288,2]
[312125304,1705653040058,-637.44324198,0.00023288,2]
[312125306,1705653040068,-637.44324198,0.00023288,2]
[312125307,1705653040080,-637.44324198,0.00023288,2]
[312125308,1705653040090,-637.44324198,0.00023288,2]
[312125309,1705653040099,-637.44324198,0.00023288,2]
[312125310,1705653040109,-637.44324198,0.00023288,2]
[312125311,1705653040117,-637.44324198,0.00023288,2]
[312125312,1705653040126,-637.44324198,0.00023288,2]
[312125313,1705653040135,-637.44324198,0.00023288,2]
[312125314,1705653040144,-637.44324198,0.00023288,2]
[312125315,1705653040154,-543.92,0.00023301,2]
[312125316,1705653040164,-179.67,0.0002334,2]
[312125317,1705653040173,-159.7,0.00023397,2]
[312125318,1705653040182,-500.0,0.00023452,2]
[312125319,1705653040191,-200.0,0.00023462,2]
[312125320,1705653040200,-543.92,0.00023466,2]
[312125321,1705653040209,-840.0,0.00023495,2]
[312125322,1705653040218,-179.67,0.00023512,2]
[312125323,1705653040227,-735.03279687,0.00023555,2]
[312125324,1705653040236,-157.78,0.00023564,2]
[312125325,1705653040245,-543.92,0.00023632,2]
[312125326,1705653040254,-150.61,0.00023635,2]
[312125327,1705653040263,-180.0,0.00023639,2]
[312125328,1705653040272,-2274.0,0.00023668,2]
[312125329,1705653040281,-836.0,0.00023668,2]
[312125330,1705653040290,-1233.0,0.00023668,2]
[312125331,1705653040300,-1250.0,0.00023668,2]
[312125332,1705653040308,-426.0,0.00023668,2]
[312125333,1705653040317,-319.945,0.00023668,2]
[312125334,1705653040326,-179.67,0.00023684,2]
[312125335,1705653040335,-7515.49248177,0.00023715,2]
[312125336,1705653040344,-159.7,0.00023737,2]
[312125337,1705653040353,-543.92,0.00023798,2]
[312125338,1705653040362,-323.2,0.00023827,2]
[312125339,1705653040372,-179.67,0.00023856,2]
[312125340,1705653040381,-157.34,0.00023962,2]
[312125341,1705653040390,-543.92,0.00023963,2]
[312125342,1705653040399,-201.16205573,0.00024,2]
[312125343,1705653040408,-431.59040182,0.00024,2]
[312125344,1705653040417,-155.49650287,0.00024,2]
[312125345,1705653040426,-600.0,0.00024,3]
[312125346,1705653040435,-272.84525025,0.00024,2]
[312125347,1705653040627,-179.67,0.00024028,2]
[312125348,1705653040636,-442.35,0.00024046,2]
[312125349,1705653040645,-157.16,0.00024061,2]
[312125350,1705653040655,-159.7,0.00024077,2]
[312125351,1705653040663,-300.21409178,0.000241,2]
[312125352,1705653040672,-543.92,0.00024129,2]
[312125353,1705653040681,-179.67,0.000242,2]
[312125354,1705653040690,-154.57593043,0.00024204,2]
[312125355,1705653040699,-167.0,0.00024297,2]
[312125356,1705653040708,-155.52310453,0.00024306,2]
[312125357,1705653040716,-179.67,0.00024372,2]
[312125358,1705653040726,-159.7,0.00024417,2]
[312125359,1705653040736,-200.0,0.00024429,2]
[312125360,1705653040745,-7515.49248177,0.00024533,2]
[312125361,1705653040754,-179.67,0.00024544,2]
[312125362,1705653040763,-150.0,0.00024599,2]
[312125363,1705653040772,-150.0,0.00024599,2]
[312125364,1705653040781,-30437.0,0.000246,2]
[312125365,1705653040790,-3291.0,0.000246,2]
[312125366,1705653040800,-1993.44870767,0.00024621,2]
[312125367,1705653040809,-200.0,0.00024658,2]
[312125368,1705653040819,-250.0,0.00024658,2]
[312125369,1705653040828,-150.0,0.00024658,2]
[312125370,1705653040838,-150.0,0.00024658,2]
[312125371,1705653040847,-150.0,0.00024658,2]
[312125372,1705653040857,-150.0,0.00024658,2]
[312125373,1705653040866,-150.0,0.00024658,2]
[312125374,1705653040876,-150.0,0.00024658,2]
[312125375,1705653040886,-150.0,0.00024658,2]
[312125376,1705653040895,-150.0,0.00024658,2]
[312125377,1705653040905,-150.0,0.00024658,2]
[312125378,1705653040914,-150.0,0.00024658,2]
[312125379,1705653040923,-150.0,0.00024658,2]
[312125380,1705653040932,-150.0,0.00024658,2]
[312125381,1705653040942,-150.0,0.00024658,2]
[312125382,1705653040950,-150.0,0.00024658,2]
[312125383,1705653040960,-150.0,0.00024658,2]
[312125384,1705653040970,-150.0,0.00024658,2]
[312125385,1705653040979,-150.0,0.00024658,2]
[312125386,1705653040988,-150.0,0.00024658,2]
[312125387,1705653040998,-150.0,0.00024658,2]
[312125388,1705653041007,-152.64182422,0.00024658,2]
[312125389,1705653041016,-425.79707878,0.00024687,2]
[312125390,1705653041028,-735.46701783,0.00024687,2]
[312125391,1705653041038,-179.67,0.00024716,2]
[312125392,1705653041047,-159.7,0.00024758,2]
[312125393,1705653041057,-323.2,0.00024805,2]
[312125394,1705653041069,-442.35,0.00024847,2]
[312125395,1705653041088,-179.67,0.00024888,2]
[312125396,1705653041098,-411.29261382,0.0002497,2]
[312125397,1705653041107,-167.40543921,0.00025,2]
[312125398,1705653041116,-484.07793094,0.00025,2]
[312125399,1705653041126,-158.69157594,0.00025,2]
[312125400,1705653041136,-1584.35924632,0.00025,2]
[312125401,1705653041145,-307.5946143,0.00025,5]
[312125402,1705653041154,-1249.1438969,0.00025,2]
[312125403,1705653041163,-933.81243155,0.00025,2]
[312125404,1705653041173,-303.51189486,0.00025,2]
[312125405,1705653041182,-202.05640348,0.00025,2]
[312125406,1705653041190,-2004.75702552,0.00025,2]
[312125407,1705653041200,-22624.44515743,0.00025,2]
[312125408,1705653041209,-275.5,0.00025,2]
[312125409,1705653041218,-179.67,0.0002506,2]
[312125410,1705653041227,-159.7,0.00025098,2]
[312125411,1705653041236,-167.0,0.00025099,2]
[312125412,1705653041246,-158.68,0.00025133,2]
[312125413,1705653041255,-2182.06396274,0.00025186,28]
[312125414,1705653041265,-2033.55778036,0.00025204,2]
[312125415,1705653041274,-7515.49248177,0.00025352,2]
[312125416,1705653041283,-159.7,0.00025438,2]
[312125417,1705653041292,-154.57593043,0.00025512,2]
[312125418,1705653041302,-205.0,0.00025544,6]
[312125419,1705653041311,-159.7,0.00025778,2]
[312125420,1705653041320,-323.2,0.00025783,2]
[312125421,1705653041329,-167.0,0.00025901,2]
[312125422,1705653041339,-650.0,0.00026,3]
[312125423,1705653041348,-500.0,0.00026,2]
[312125424,1705653041357,-650.0,0.00026,2]
[312125425,1705653041367,-277.292105,0.00026,2]
[312125426,1705653041377,-207.68214018,0.00026,2]
[312125427,1705653041386,-207.68214018,0.00026,2]
[312125428,1705653041395,-207.68214018,0.00026,2]
[312125429,1705653041405,-207.68214018,0.00026,2]
[312125430,1705653041414,-207.68214018,0.00026,2]
[312125431,1705653041423,-207.68214018,0.00026,2]
[312125432,1705653041432,-207.68214018,0.00026,2]
[312125433,1705653041441,-207.68214018,0.00026,2]
[312125434,1705653041450,-207.68214018,0.00026,2]
[312125435,1705653041459,-207.68214018,0.00026,2]
[312125436,1705653041469,-207.68214018,0.00026,2]
[312125437,1705653041478,-207.68214018,0.00026,2]
[312125438,1705653041487,-207.68214018,0.00026,2]
[312125439,1705653041496,-207.68214018,0.00026,2]
[312125440,1705653041505,-207.68214018,0.00026,2]
[312125441,1705653041515,-207.68214018,0.00026,2]
[312125442,1705653041524,-207.68214018,0.00026,2]
[312125443,1705653041533,-207.68214018,0.00026,2]
[312125444,1705653041542,-207.68214018,0.00026,2]
[312125445,1705653041551,-207.68214018,0.00026,2]
[312125446,1705653041561,-207.68214018,0.00026,2]
[312125447,1705653041570,-207.68214018,0.00026,2]
[312125448,1705653041579,-207.68214018,0.00026,2]
[312125449,1705653041588,-207.68214018,0.00026,2]
[312125450,1705653041598,-207.68214018,0.00026,2]
[312125451,1705653041607,-207.68214018,0.00026,2]
[312125452,1705653041616,-207.68214018,0.00026,2]
[312125453,1705653041627,-207.68214018,0.00026,2]
[312125454,1705653041636,-207.68214018,0.00026,2]
[312125455,1705653041645,-207.68214018,0.00026,2]
[312125456,1705653041654,-207.68214018,0.00026,2]
[312125457,1705653041664,-207.68214018,0.00026,2]
[312125458,1705653041676,-207.68214018,0.00026,2]
[312125459,1705653041685,-207.68214018,0.00026,2]
[312125460,1705653041696,-207.68214018,0.00026,2]
[312125461,1705653041707,-207.68214018,0.00026,2]
[312125462,1705653041718,-207.68214018,0.00026,2]
[312125463,1705653041727,-207.68214018,0.00026,2]
[312125464,1705653041736,-207.68214018,0.00026,2]
[312125465,1705653041746,-207.68214018,0.00026,2]
[312125466,1705653041755,-207.68214018,0.00026,2]
[312125467,1705653041764,-207.68214018,0.00026,2]
[312125468,1705653041775,-207.68214018,0.00026,2]
[312125469,1705653041785,-207.68214018,0.00026,2]
[312125470,1705653041795,-207.68214018,0.00026,2]
[312125471,1705653041805,-207.68214018,0.00026,2]
[312125472,1705653041814,-207.68214018,0.00026,2]
[312125473,1705653041824,-207.68214018,0.00026,2]
[312125474,1705653041833,-207.68214018,0.00026,2]
[312125475,1705653041843,-207.68214018,0.00026,2]
[312125476,1705653041853,-207.68214018,0.00026,2]
[312125477,1705653041864,-207.68214018,0.00026,2]
[312125478,1705653041874,-207.68214018,0.00026,2]
[312125479,1705653041884,-207.68214018,0.00026,2]
[312125480,1705653041894,-207.68214018,0.00026,2]
[312125481,1705653041903,-207.68214018,0.00026,2]
[312125482,1705653041913,-207.68214018,0.00026,2]
[312125483,1705653041923,-207.68214018,0.00026,2]
[312125484,1705653041933,-207.68214018,0.00026,2]
[312125485,1705653041942,-207.68214018,0.00026,2]
[312125486,1705653041951,-207.68214018,0.00026,2]
[312125487,1705653041960,-207.68214018,0.00026,2]
[312125488,1705653041970,-207.68214018,0.00026,2]
[312125489,1705653041979,-207.68214018,0.00026,2]
[312125490,1705653041988,-207.68214018,0.00026,2]
[312125491,1705653041997,-207.68214018,0.00026,2]
[312125492,1705653042006,-207.68214018,0.00026,2]
[312125493,1705653042016,-207.68214018,0.00026,2]
[312125494,1705653042024,-207.68214018,0.00026,2]
[312125495,1705653042034,-207.68214018,0.00026,2]
[312125496,1705653042044,-207.68214018,0.00026,2]
[312125497,1705653042053,-207.68214018,0.00026,2]
[312125498,1705653042064,-207.68214018,0.00026,2]
[312125499,1705653042076,-207.68214018,0.00026,2]
[312125500,1705653042086,-207.68214018,0.00026,2]
[312125501,1705653042096,-207.68214018,0.00026,2]
[312125502,1705653042105,-207.68214018,0.00026,2]
[312125503,1705653042113,-207.68214018,0.00026,2]
[312125504,1705653042123,-207.68214018,0.00026,2]
[312125505,1705653042134,-207.68214018,0.00026,2]
[312125506,1705653042143,-207.68214018,0.00026,2]
[312125507,1705653042156,-207.68214018,0.00026,2]
[312125508,1705653042166,-207.68214018,0.00026,2]
[312125509,1705653042179,-207.68214018,0.00026,2]
[312125510,1705653042216,-207.68214018,0.00026,2]
[312125511,1705653042225,-207.68214018,0.00026,2]
[312125512,1705653042234,-207.68214018,0.00026,2]
[312125513,1705653042243,-207.68214018,0.00026,2]
[312125514,1705653042252,-207.68214018,0.00026,2]
[312125515,1705653042261,-207.68214018,0.00026,2]
[312125516,1705653042269,-207.68214018,0.00026,2]
[312125517,1705653042278,-207.68214018,0.00026,2]
[312125518,1705653042288,-207.68214018,0.00026,2]
[312125519,1705653042297,-207.68214018,0.00026,2]
[312125520,1705653042305,-1993.44870767,0.00026077,3]
[312125521,1705653042314,-840.0,0.00026105,2]
[312125522,1705653042323,-155.0,0.00026112,2]
[312125523,1705653042332,-7515.49248177,0.0002617,2]
[312125524,1705653042342,-157.34,0.00026216,2]
[312125525,1705653042351,-1000.0,0.00026324,3]
[312125526,1705653042361,-157.16,0.00026325,2]
[312125527,1705653042371,-1000.0,0.00026349,3]
[312125528,1705653042380,-1000.0,0.00026349,3]
[312125529,1705653042389,-1000.0,0.00026349,3]
[312125530,1705653042399,-8607.60014572,0.000264,2]
[312125531,1705653042408,-425.79707878,0.00026475,2]
[312125532,1705653042419,-735.46701783,0.00026475,2]
[312125533,1705653042429,-2053.0,0.0002653,2]
[312125535,1705653042439,-400.0,0.0002657,2]
[312125537,1705653042448,-2883.65,0.00026575,2]
[312125539,1705653042458,-10053.97411431,0.00026575,2]
[312125542,1705653042473,-7824.61588569,0.00026575,2]
[312125544,1705653042482,-1000.0,0.00026629,3]
[312125545,1705653042491,-559.443,0.00026668,2]
[312125546,1705653042500,-1030.469,0.00026668,2]
[312125547,1705653042509,-814.736,0.00026668,2]
[312125548,1705653042518,-167.0,0.00026703,2]
[312125549,1705653042527,-323.2,0.00026762,2]
[312125550,1705653042536,-1000.0,0.00026764,3]
[312125551,1705653042545,-1000.0,0.00026764,3]
[312125552,1705653042554,-1000.0,0.00026764,3]
[312125553,1705653042563,-1000.0,0.00026764,3]
[312125554,1705653042572,-403.28384203,0.00026764,3]
[312125555,1705653042581,-1000.0,0.00026764,3]
[312125556,1705653042591,-1000.0,0.00026764,3]
[312125557,1705653042600,-201.64192101,0.00026764,3]
[312125559,1705653042609,-1000.0,0.00026764,3]
[312125561,1705653042618,-155.13676986,0.00026764,3]
[312125563,1705653042627,-540.59062531,0.00026764,3]
[312125565,1705653042637,-1000.0,0.00026764,3]
[312125567,1705653042646,-1000.0,0.00026764,3]
[312125568,1705653042655,-241.89489183,0.00026764,3]
[312125571,1705653042664,-225.10985975,0.00026764,3]
[312125572,1705653042673,-213.09478857,0.00026764,3]
[312125574,1705653042682,-1000.0,0.00026764,3]
[312125577,1705653042692,-1000.0,0.00026764,3]
[312125578,1705653042701,-1000.0,0.00026764,3]
[312125579,1705653042710,-1000.0,0.00026764,3]
[312125580,1705653042718,-1000.0,0.00026764,3]
[312125581,1705653042727,-986.57725554,0.00026764,3]
[312125582,1705653042736,-1000.0,0.00026764,3]
[312125583,1705653042745,-1000.0,0.00026764,3]
[312125584,1705653042754,-5042.83184697,0.00026764,3]
[312125585,1705653042763,-1386.77875792,0.00026764,3]
[312125586,1705653042771,-939.95015573,0.00026764,3]
[312125587,1705653042780,-3064.47679572,0.00026764,3]
[312125588,1705653042790,-154.57593043,0.0002682,2]
[312125589,1705653042799,-1146.0,0.00026893,2]
[312125590,1705653042808,-7515.49248177,0.00026989,2]
[312125591,1705653042817,-155.0,0.00027,2]
[312125592,1705653042826,-416.19937194,0.00027,2]
[312125593,1705653042835,-200.0,0.00027144,2]
[312125594,1705653042845,-6952.72031411,0.000272,2]
[312125595,1705653042854,-1709.05,0.00027397,2]
[312125596,1705653042865,-155.0,0.00027397,2]
[312125597,1705653042875,-200.0,0.00027397,5]
[312125598,1705653042884,-161.75,0.00027397,2]
[312125599,1705653042894,-155.98,0.00027397,2]
[312125600,1705653042903,-183.67,0.00027397,2]
[312125601,1705653042912,-157.22,0.00027397,2]
[312125602,1705653042921,-150.01,0.00027397,2]
[312125603,1705653042931,-184.76,0.00027397,2]
[312125604,1705653042940,-8000.0,0.000274,2]
[312125605,1705653042949,-167.0,0.00027505,2]
[312125606,1705653042959,-500.0,0.00027532,2]
[312125607,1705653042968,-500.0,0.00027532,2]
[312125608,1705653042978,-500.0,0.00027532,2]
[312125609,1705653042988,-500.0,0.00027532,2]
[312125610,1705653042998,-500.0,0.00027532,2]
[312125611,1705653043007,-500.0,0.00027532,2]
[312125613,1705653043016,-500.0,0.00027532,2]
[312125614,1705653043025,-500.0,0.00027532,2]
[312125616,1705653043035,-500.0,0.00027532,2]
[312125617,1705653043044,-1993.44870767,0.00027532,3]
[312125619,1705653043054,-323.2,0.0002774,2]
[312125620,1705653043063,-150.01,0.00027753,2]
[312125621,1705653043074,-500.0,0.00027798,2]
[312125622,1705653043084,-500.0,0.00027798,2]
[312125623,1705653043093,-500.0,0.00027798,2]
[312125625,1705653043102,-500.0,0.00027798,2]
[312125626,1705653043110,-500.0,0.00027798,2]
[312125627,1705653043120,-500.0,0.00027798,2]
[312125628,1705653043129,-500.0,0.00027798,2]
[312125629,1705653043138,-500.0,0.00027798,2]
[312125630,1705653043147,-500.0,0.00027798,2]
[312125631,1705653043158,-500.0,0.00027798,2]
[312125632,1705653043169,-500.0,0.00027798,2]
[312125633,1705653043179,-500.0,0.00027798,2]
[312125634,1705653043188,-500.0,0.00027798,2]
[312125635,1705653043197,-500.0,0.00027799,2]
[312125636,1705653043364,-500.0,0.00027799,2]
[312125637,1705653043376,-500.0,0.00027799,2]
[312125638,1705653043384,-500.0,0.00027799,2]
[312125639,1705653043393,-500.0,0.00027799,2]
[312125640,1705653043402,-500.0,0.00027799,2]
[312125641,1705653043413,-500.0,0.00027799,2]
[312125642,1705653043424,-500.0,0.00027799,2]
[312125643,1705653043433,-500.0,0.00027799,2]
[312125644,1705653043442,-500.0,0.00027799,2]
[312125645,1705653043451,-500.0,0.00027799,2]
[312125646,1705653043460,-500.0,0.00027799,2]
[312125647,1705653043469,-500.0,0.00027799,2]
[312125648,1705653043478,-500.0,0.00027799,2]
[312125649,1705653043487,-500.0,0.00027799,2]
[312125650,1705653043496,-500.0,0.00027799,2]
[312125651,1705653043506,-500.0,0.00027799,2]